{"text_format":"1","workbook":"xlsx","n_sheets":8,"sheets":["START HERE","Inventory","Budget 23-24","Budget 24-25","Codes","Dropdown List","23-24 Allocations","24-25 Allocations"],"not_rendered":{"charts":0,"images":0,"macros":1,"external_links":1,"defined_names":3,"comments":0,"pivot_tables":0},"unopened":[],"bounds":{"document_bytes":16777216,"sheet_cells":100000,"rows_first":2000,"rows_last":500,"rows_between":2000,"halvings":0,"cell_chars":16384,"cell_head_chars":4096},"cells_cut":0,"cells_raw":0,"read":"whole","date_system":"1900"}

{"sheet":"START HERE","index":0,"n_rows":21,"n_cols":2,"rows_kept":21,"cut":false,"hidden":false,"merged":[[1,1,1,4],[3,1,3,5],[4,2,4,5],[5,2,5,5],[6,2,6,5]]}
[]
[null,"Select your institution from the drop down list to the right:"]
[]
[null,"Please provide contact information for the person completing this budget"]
[null,"Name"]
[null,"Phone"]
[null,"Email"]
[]
[]
[]
[]
[]
[]
[]
[]
[]
["Update 12/6/23"]
["Formula in Column F in Inventory updated to allow multiple grade levels to be entered."]
[]
["Update 12/6/23"]
["Typo corrected in Budget tabs to reflect correct years."]

{"sheet":"Inventory","index":1,"n_rows":1,"n_cols":12,"rows_kept":1,"cut":false,"hidden":false,"merged":[]}
["Type of Material \n(Dropdown Menu)","If other, please describe","Title of literacy assessments, tools, curricula and digital resources ","Name of Vendor / Developer / Publisher","Print or Digital (Dropdown Menu)","Grades - Enter all Applicable Grades","Was this adopted from the 2022 SBE Adopted Materials for English Language Arts (ELA) and Literacy list or through an Independent Adoption? \n(Dropdown Menu)","If adopted instructional material are from the 2022 SBE Adopted Materials for English Language Arts (ELA) and Literacy list, please indicate which one from the list below. \n(Dropdown Menu)\n(If Applicable)","If Independent adoption, did your school board use the SBE ELA Adoption Criteria? \n(Dropdown Menu) \n(If Applicable)","Date of Adoption","Is this your student growth assessment?\n (Dropdown Menu)","Please describe any planned changes or updates for materials that are not currently research-aligned. \n\nIf your school board did NOT use the SBE ELA Adoption Criteria, this question is required for your core curriculum.  Please include the anticipated date of new adoption.\n(If Applicable)"]

{"sheet":"Budget 23-24","index":2,"n_rows":5,"n_cols":8,"rows_kept":5,"cut":false,"hidden":false,"merged":[[0,0,4,0]]}
["Grant Allowable Use Category",null,null,null,null,null,null,"Overall Literacy Budget (23-24)"]
[null,null,"--","--","--","--","Total Allocation 2023-24 (Autofill from Start Here tab):",{"$f":"IFERROR(VLOOKUP('START HERE'!F2,Allocations,4,0),0)","v":0}]
[null,null,"--","--","--","--","Total Budgeted Amounts (Autosum):",{"$f":"SUM(H6:H75)","v":0}]
[null,null,null,null,null,null,"Unbudgeted (Autocalculate):",{"$f":"H2-H3","v":0}]
[null,"Proposed Investment","FTE","FTE Type","Allowable Use Code","Object Code","4th or 5th Grade Expenditure","Literacy Budget (23-24)"]

{"sheet":"Budget 24-25","index":3,"n_rows":5,"n_cols":8,"rows_kept":5,"cut":false,"hidden":false,"merged":[[0,0,4,0]]}
["Grant Allowable Use Category",null,null,null,null,null,null,"Overall Literacy Budget (24-25)"]
[null,null,"--","--","--","--","Total Allocation 2024-25 (Autofill from Start Here tab):",{"$f":"IFERROR(VLOOKUP('START HERE'!F2,Allocations2,4,0),0)","v":0}]
[null,null,"--","--","--","--","Total Budgeted Amounts (Autosum):",{"$f":"SUM(H6:H75)","v":0}]
[null,null,null,null,null,null,"Unbudgeted (Autocalculate):",{"$f":"H2-H3","v":0}]
[null,"Proposed Investment","FTE","FTE Type","Allowable Use Code","Object Code","4th or 5th Grade Expenditure","Literacy Budget (24-25)"]

{"sheet":"Codes","index":4,"n_rows":27,"n_cols":2,"rows_kept":27,"cut":false,"hidden":false,"merged":[]}
[]
["Allowable Use Code","Code"]
["Purchase Culturally Relevant Curricula & Materials","CRCM"]
["Curricula Training & PD","CTPD"]
["Professional Development and Coaching","PDC"]
["1:1 High Dosage Tutoring","1:1HDT"]
["Small Group High Dosage Tutoring","SGHDT"]
["Extended Learning Programs - Home-based Summer Reading","ELPH"]
["Extended Learning Programs - Intensive Summer School","ELPSS"]
["Extended Learning Programs - Other","ELPO"]
[]
["ALL\nObject Codes","Code"]
["111 Licensed Salaries includes licensed coordinators and employees in the bargaining unit",111]
["112 Classified Salaries for work performed by \"Classified Employees\"",112]
["11X Salaries associated with \"Support Staff and Support Personnel\", Salaries associated with \"Program Coordinators/Regional Coordinators\"","11X"]
["Administrative Salaries",113]
["2XX Benefits associated with \"Licensed Employees\" not included in the gross salary, Benefits associated with \"Program Coordinators/Regional Coordinators\" not included in the gross salary, Benefits associated with \"Classified Employees\" and \"Support Staff\" not included in the gross salary","2XX"]
["12X Substitute Salaries for employees who are hired on a temporary or substitute basis","12X"]
["Additional Salaries","13X"]
["3XX Local CTE Instructional Services (Purchased), Regional CTE Instructional Services (Purchased), 31X Instructional, Professional and Technical Services","31X"]
["34X Travel costs (e.g., mileage, hotel, registration, per diem, meals, car rentals, etc.)","34X"]
["Other Supplies and Materials","4XX"]
["Capital Outlay","5XX"]
["690 Grant Indirect Charges/Administrative Indirect",690]
["Dues and Fees",640]
["Miscellaneous","8XX"]
["Other","Other"]

{"sheet":"Dropdown List","index":5,"n_rows":259,"n_cols":5,"rows_kept":259,"cut":false,"hidden":true,"merged":[]}
[{"$f":"CONCATENATE(B1,\"-\",C1)","v":"4555-Academy for Character Education"},4555,"Academy for Character Education"]
["2063-Adel SD 21",2063,"Adel SD 21",null,"Amplify Education | Core Knowledge LA 2nd Edition (CKLA2) (Grades K-2)"]
["2113-Adrian SD 61",2113,"Adrian SD 61",null,"Benchmark Education | Benchmark Advance ©2022 (Grade K-2)"]
["4585-Alliance Charter Academy",4585,"Alliance Charter Academy",null,"Imagine Learning LLC (formerly Edgenuity / LearnZillion | LearnZillion/EL Education (Grades K-2)"]
["1899-Alsea SD 7J",1899,"Alsea SD 7J",null,"Great Minds PBC and Wilson Langauge Training | Wit & Wisdom with Fundations and Geodes (Grades K-2)"]
["2252-Amity SD 4J",2252,"Amity SD 4J",null,"Houghton Mifflin Harcourt Publishing Company HMH Into Reading (Grades K-2)"]
["705-Annex Charter School",705,"Annex Charter School",null,"McGraw Hill LLC | Wonders (Grades K-2)"]
["4805-Arco Iris Spanish Immersion School",4805,"Arco Iris Spanish Immersion School",null,"Savvas Learning Company | myView Literacy, Words Their Way Classroom (Grades K-2)"]
["2005-Arlington SD 3",2005,"Arlington SD 3",null,"Amplify Education (updated) | Core Knowledge Language Arts 2nd Edition (CKLA2)(Grades 3-5)"]
["3580-Arthur Academy",3580,"Arthur Academy",null,"Benchmark Education | Benchmark Advance ©2022 (Grades 3-5)"]
["2041-Ashland SD 5",2041,"Ashland SD 5",null,"Imagine Learning LLC (formerly Edgenuity / LearnZillion | LearnZillion/EL Education (Grades 3-5)"]
["2051-Ashwood SD 8",2051,"Ashwood SD 8",null,"Great Minds PBC and Wilson Langauge Training | Wit & Wisdom with Fundations (Grades 3-5)"]
["1933-Astoria SD 1",1933,"Astoria SD 1",null,"Houghton Mifflin Harcourt Publishing Company HMH Into Reading (Grades 3-5)"]
["2208-Athena-Weston SD 29RJ",2208,"Athena-Weston SD 29RJ",null,"McGraw Hill LLC | Wonders (Grades 3-5)"]
["1894-Baker SD 5J",1894,"Baker SD 5J",null,"OpenUp Resources | EL Education K-8 Language Arts (Grades 3-5)"]
["1969-Bandon SD 54",1969,"Bandon SD 54",null,"Savvas Learning Company | myView Literacy, Words Their Way Classroom (Grades 3-5)"]
["2240-Banks SD 13",2240,"Banks SD 13",null,"Not applicable"]
["2243-Beaverton SD 48J",2243,"Beaverton SD 48J",null,"Student Belonging"]
["5309-Bend International School",5309,"Bend International School",null,"Family & Community Partnerships"]
["1976-Bend-LaPine Administrative SD 1",1976,"Bend-LaPine Administrative SD 1",null,"Oral Langauge as the Root of Literacy Development"]
["784-Bethany Charter School",784,"Bethany Charter School",null,"Reading Models Based in Research"]
["2088-Bethel SD 52",2088,"Bethel SD 52",null,"Foundational Skills"]
["2095-Blachly SD 90",2095,"Blachly SD 90",null,"Writing, Reading, Comprehension, Vocabulary, & Background Knowledge"]
["2052-Black Butte SD 41",2052,"Black Butte SD 41",null,"Core Instruction & Assessment"]
["5349-Bridge Charter Academy",5349,"Bridge Charter Academy",null,"Reaching All Learners"]
["1974-Brookings-Harbor SD 17C",1974,"Brookings-Harbor SD 17C",null,"Vision"]
["1896-Burnt River SD 30J",1896,"Burnt River SD 30J",null,"Materials"]
["2046-Butte Falls SD 91",2046,"Butte Falls SD 91",null,"Data"]
["1995-Camas Valley SD 21J",1995,"Camas Valley SD 21J",null,"Team"]
["1929-Canby SD 86",1929,"Canby SD 86",null,"Time"]
["4475-Cascade Heights Public Charter School",4475,"Cascade Heights Public Charter School"]
["2139-Cascade SD 5",2139,"Cascade SD 5",null,"Core Materials"]
["2185-Centennial SD 28J",2185,"Centennial SD 28J",null,"Supplemental Materials"]
["1972-Central Curry SD 1",1972,"Central Curry SD 1",null,"Intervention/Acceleration Materials"]
["2105-Central Linn SD 552",2105,"Central Linn SD 552",null,"Progress Monitoring Materials"]
["2042-Central Point SD 6",2042,"Central Point SD 6",null,"Formative Assessment Materials"]
["2191-Central SD 13J",2191,"Central SD 13J",null,"Benchmark or Summative Assessment"]
["4395-Childs Way Charter School",4395,"Childs Way Charter School",null,"Student Growth Assessment"]
[null,null,null,null,"Other"]
[{"$f":"CONCATENATE(B40,\"-\",C40)","v":"4206-City View Charter School"},4206,"City View Charter School"]
["1945-Clatskanie SD 6J",1945,"Clatskanie SD 6J"]
["507-Coburg Community Charter School",507,"Coburg Community Charter School"]
["1927-Colton SD 53",1927,"Colton SD 53"]
["2006-Condon SD 25J",2006,"Condon SD 25J"]
["1965-Coos Bay SD 9",1965,"Coos Bay SD 9"]
["1964-Coquille SD 8",1964,"Coquille SD 8"]
["4592-Corbett School",4592,"Corbett School"]
["2186-Corbett SD 39",2186,"Corbett SD 39"]
["1901-Corvallis SD 509J",1901,"Corvallis SD 509J"]
["2216-Cove SD 15",2216,"Cove SD 15"]
["2023-Crane Consortium",2023,"Crane Consortium"]
["5251-Crater Lake Academy",5251,"Crater Lake Academy"]
["2086-Creswell SD 40",2086,"Creswell SD 40"]
["1970-Crook County SD",1970,"Crook County SD"]
["2089-Crow-Applegate-Lorane SD 66",2089,"Crow-Applegate-Lorane SD 66"]
["2050-Culver SD 4",2050,"Culver SD 4"]
["5298-Dallas Community Charter",5298,"Dallas Community Charter"]
["2190-Dallas SD 2",2190,"Dallas SD 2"]
["2187-David Douglas SD 40",2187,"David Douglas SD 40"]
["2253-Dayton SD 8",2253,"Dayton SD 8"]
["2011-Dayville SD 16J",2011,"Dayville SD 16J"]
["5384-Desert Sky Montessori",5384,"Desert Sky Montessori"]
["1993-Douglas County SD 15",1993,"Douglas County SD 15"]
["1991-Douglas County SD 4",1991,"Douglas County SD 4"]
["2229-Dufur SD 29",2229,"Dufur SD 29"]
["4850-Eagle Charter School",4850,"Eagle Charter School"]
["2043-Eagle Point SD 9",2043,"Eagle Point SD 9"]
["2203-Echo SD 5",2203,"Echo SD 5"]
["3361-Eddyville Charter School",3361,"Eddyville Charter School"]
["2217-Elgin SD 23",2217,"Elgin SD 23"]
["1998-Elkton SD 34",1998,"Elkton SD 34"]
["3991-Emerson School",3991,"Emerson School"]
["2221-Enterprise SD 21",2221,"Enterprise SD 21"]
["1930-Estacada SD 108",1930,"Estacada SD 108"]
["2082-Eugene SD 4J",2082,"Eugene SD 4J"]
["2193-Falls City SD 57",2193,"Falls City SD 57"]
["2084-Fern Ridge SD 28J",2084,"Fern Ridge SD 28J"]
["4595-Forest Grove Community School",4595,"Forest Grove Community School"]
["2241-Forest Grove SD 15",2241,"Forest Grove SD 15"]
["4040-Four Rivers Community School",4040,"Four Rivers Community School"]
["2245-Gaston SD 511J",2245,"Gaston SD 511J"]
["2137-Gervais SD 1",2137,"Gervais SD 1"]
["1931-Gladstone SD 115",1931,"Gladstone SD 115"]
["307-Glendale Community Charter School Pre-K-12",307,"Glendale Community Charter School Pre-K-12"]
["2000-Glendale SD 77",2000,"Glendale SD 77"]
["1992-Glide SD 12",1992,"Glide SD 12"]
["2054-Grants Pass SD 7",2054,"Grants Pass SD 7"]
["2100-Greater Albany Public SD 8J",2100,"Greater Albany Public SD 8J"]
["4601-Gresham Arthur Academy",4601,"Gresham Arthur Academy"]
["2183-Gresham-Barlow SD 10J",2183,"Gresham-Barlow SD 10J"]
["2014-Harney 3 Monroe Consortium",2014,"Harney 3 Monroe Consortium"]
["2013-Harney Region Consortium",2013,"Harney Region Consortium"]
["2114-Harper SD 66",2114,"Harper SD 66"]
["2099-Harrisburg SD 7J",2099,"Harrisburg SD 7J"]
["2201-Helix SD 1",2201,"Helix SD 1"]
["2206-Hermiston SD 8",2206,"Hermiston SD 8"]
["2239-Hillsboro SD 1J",2239,"Hillsboro SD 1J"]
["5732-HOLLA School",5732,"HOLLA School"]
["2024-Hood River County SD",2024,"Hood River County SD"]
["4867-Hope Chinese Charter School",4867,"Hope Chinese Charter School"]
["1895-Huntington SD 16J",1895,"Huntington SD 16J"]
["2215-Imbler SD 11",2215,"Imbler SD 11"]
["4637-Inavale Community Partners dba Muddy Creek Charter School ",4637,"Inavale Community Partners dba Muddy Creek Charter School "]
[{"$f":"CONCATENATE(B104,\"-\",C104)","v":"3997-Ione SD R2"},3997,"Ione SD R2"]
["2053-Jefferson County SD 509J",2053,"Jefferson County SD 509J"]
["2140-Jefferson SD 14J",2140,"Jefferson SD 14J"]
["1934-Jewell SD 8",1934,"Jewell SD 8"]
["2008-John Day SD 3",2008,"John Day SD 3"]
["2107-Jordan Valley SD 3",2107,"Jordan Valley SD 3"]
["1087-Joseph Charter School",1087,"Joseph Charter School"]
["2219-Joseph SD 6",2219,"Joseph SD 6"]
["2091-Junction City SD 69",2091,"Junction City SD 69"]
["5218-Kairos PDX",5218,"Kairos PDX"]
["5205-Kids Unlimited Academy",5205,"Kids Unlimited Academy"]
["5572-Kids Unlimited Academy White City",5572,"Kids Unlimited Academy White City"]
["3440-Kings Valley Charter School",3440,"Kings Valley Charter School"]
["2057-Klamath County SD",2057,"Klamath County SD"]
["2056-Klamath Falls City Schools",2056,"Klamath Falls City Schools"]
["2262-Knappa SD 4",2262,"Knappa SD 4"]
["2212-La Grande SD 1",2212,"La Grande SD 1"]
["2059-Lake County SD 7",2059,"Lake County SD 7"]
["1923-Lake Oswego SD 7J",1923,"Lake Oswego SD 7J"]
["5060-Le Monde French Immersion Public Charter School",5060,"Le Monde French Immersion Public Charter School"]
["2101-Lebanon Community SD 9",2101,"Lebanon Community SD 9"]
["4667-Lewis and Clark Montessori Charter School",4667,"Lewis and Clark Montessori Charter School"]
["3615-Lighthouse Charter School",3615,"Lighthouse Charter School"]
["2097-Lincoln County SD",2097,"Lincoln County SD"]
["4821-Logos Charter School",4821,"Logos Charter School"]
["2012-Long Creek SD 17",2012,"Long Creek SD 17"]
["2994-Lourdes School",2994,"Lourdes School"]
["2092-Lowell SD 71",2092,"Lowell SD 71"]
["3461-Luckiamute Valley Charter School",3461,"Luckiamute Valley Charter School"]
["4593-Madrone Trail Public Charter School",4593,"Madrone Trail Public Charter School"]
["2106-Malheur ESD Region 14",2106,"Malheur ESD Region 14"]
["2085-Mapleton SD 32",2085,"Mapleton SD 32"]
["2094-Marcola SD 79J",2094,"Marcola SD 79J"]
["2090-McKenzie SD 68",2090,"McKenzie SD 68"]
["2256-McMinnville SD 40",2256,"McMinnville SD 40"]
["2048-Medford SD 549C",2048,"Medford SD 549C"]
["2205-Milton-Freewater Unified SD 7",2205,"Milton-Freewater Unified SD 7"]
["2249-Mitchell SD 55",2249,"Mitchell SD 55"]
["4745-Molalla River Academy",4745,"Molalla River Academy"]
["1925-Molalla River SD 35",1925,"Molalla River SD 35"]
["1898-Monroe SD 1J",1898,"Monroe SD 1J"]
["2010-Monument SD 8",2010,"Monument SD 8"]
["2147-Morrow SD 1",2147,"Morrow SD 1"]
["1095-Mosier Community School",1095,"Mosier Community School"]
["5252-Mountain View Academy",5252,"Mountain View Academy"]
["2145-Mt Angel SD 91",2145,"Mt Angel SD 91"]
["3579-Multi-sensory Instruction Teaching Children Hands-On (MITCH)",3579,"Multi-sensory Instruction Teaching Children Hands-On (MITCH)"]
["3490-Multnomah Learning Academy",3490,"Multnomah Learning Academy"]
["1968-Myrtle Point SD 41",1968,"Myrtle Point SD 41"]
["2198-Neah-Kah-Nie SD 56",2198,"Neah-Kah-Nie SD 56"]
["2199-Nestucca Valley SD 101J",2199,"Nestucca Valley SD 101J"]
["2254-Newberg SD 29J",2254,"Newberg SD 29J"]
["1966-North Bend SD 13",1966,"North Bend SD 13"]
["1924-North Clackamas SD 12",1924,"North Clackamas SD 12"]
["1996-North Douglas SD 22",1996,"North Douglas SD 22"]
["2061-North Lake SD 14",2061,"North Lake SD 14"]
["2141-North Marion SD 15",2141,"North Marion SD 15"]
["2214-North Powder SD 8J",2214,"North Powder SD 8J"]
["2143-North Santiam SD 29J",2143,"North Santiam SD 29J"]
["4131-North Wasco County Consortium",4131,"North Wasco County Consortium"]
["2110-Nyssa SD 26",2110,"Nyssa SD 26"]
["1990-Oakland SD 1",1990,"Oakland SD 1"]
["2093-Oakridge SD 76",2093,"Oakridge SD 76"]
["2108-Ontario SD 8C",2108,"Ontario SD 8C"]
[{"$f":"CONCATENATE(B168,\"-\",C168)","v":"3528-Optimum Learning Environment Charter School"},3528,"Optimum Learning Environment Charter School"]
["1928-Oregon City SD 62",1928,"Oregon City SD 62"]
["4820-Oregon Trail  Academy",4820,"Oregon Trail  Academy"]
["1926-Oregon Trail SD 46",1926,"Oregon Trail SD 46"]
["2060-Paisley SD 11",2060,"Paisley SD 11"]
["2181-Parkrose SD 3",2181,"Parkrose SD 3"]
["2207-Pendleton SD 16",2207,"Pendleton SD 16"]
["2192-Perrydale SD 21",2192,"Perrydale SD 21"]
["1900-Philomath SD 17J",1900,"Philomath SD 17J"]
["2039-Phoenix-Talent SD 4",2039,"Phoenix-Talent SD 4"]
["2202-Pilot Rock SD 2",2202,"Pilot Rock SD 2"]
["1897-Pine Eagle SD 61",1897,"Pine Eagle SD 61"]
["2047-Pinehurst SD 94",2047,"Pinehurst SD 94"]
["2081-Pleasant Hill SD 1",2081,"Pleasant Hill SD 1"]
["2062-Plush SD 18",2062,"Plush SD 18"]
["1973-Port Orford-Langlois SD 2CJ",1973,"Port Orford-Langlois SD 2CJ"]
["4400-Portland Arthur Academy Charter School",4400,"Portland Arthur Academy Charter School"]
["2180-Portland SD 1J",2180,"Portland SD 1J"]
["4534-Portland Village School",4534,"Portland Village School"]
["223-Powell Butte Community Charter School",223,"Powell Butte Community Charter School"]
["1967-Powers SD 31",1967,"Powers SD 31"]
["2009-Prairie City SD 4",2009,"Prairie City SD 4"]
["2045-Prospect SD 59",2045,"Prospect SD 59"]
["1946-Rainier SD 13",1946,"Rainier SD 13"]
["1977-Redmond SD 2J",1977,"Redmond SD 2J"]
["2001-Reedsport SD 105",2001,"Reedsport SD 105"]
["4079-Resource Link Charter School",4079,"Resource Link Charter School"]
["4216-Reynolds Arthur Academy",4216,"Reynolds Arthur Academy"]
["2182-Reynolds SD 7",2182,"Reynolds SD 7"]
["1999-Riddle SD 70",1999,"Riddle SD 70"]
["3233-Ridgeline Montessori",3233,"Ridgeline Montessori"]
["2188-Riverdale SD 51J",2188,"Riverdale SD 51J"]
["4856-Rivers Edge Academy Charter School",4856,"Rivers Edge Academy Charter School"]
["4822-Rockwood Preparatory Academy",4822,"Rockwood Preparatory Academy"]
["2044-Rogue River SD 35",2044,"Rogue River SD 35"]
["2142-Salem-Keizer SD 24J",2142,"Salem-Keizer SD 24J"]
["3505-Sand Ridge Charter School",3505,"Sand Ridge Charter School"]
["2104-Santiam Canyon SD 129J",2104,"Santiam Canyon SD 129J"]
["958-Sauvie Island School",958,"Sauvie Island School"]
["1944-Scappoose SD 1J",1944,"Scappoose SD 1J"]
["2103-Scio SD 95",2103,"Scio SD 95"]
["1935-Seaside SD 10",1935,"Seaside SD 10"]
["2257-Sheridan SD 48J",2257,"Sheridan SD 48J"]
["2195-Sherman County SD",2195,"Sherman County SD"]
["4220-Sherwood Charter School",4220,"Sherwood Charter School"]
["2244-Sherwood SD 88J",2244,"Sherwood SD 88J"]
["4038-Siletz Valley Schools",4038,"Siletz Valley Schools"]
["2138-Silver Falls SD 4J",2138,"Silver Falls SD 4J"]
["1978-Sisters SD 6",1978,"Sisters SD 6"]
["2096-Siuslaw SD 97J",2096,"Siuslaw SD 97J"]
["4221-South Columbia Family School",4221,"South Columbia Family School"]
["2087-South Lane SD 45J3",2087,"South Lane SD 45J3"]
["1994-South Umpqua SD 19",1994,"South Umpqua SD 19"]
["2225-South Wasco County SD 1",2225,"South Wasco County SD 1"]
["2247-Spray SD 1",2247,"Spray SD 1"]
["2083-Springfield SD 19",2083,"Springfield SD 19"]
["4480-Springwater Environmental Sciences School",4480,"Springwater Environmental Sciences School"]
["4602-St Helens Arthur Academy",4602,"St Helens Arthur Academy"]
["1948-St Helens SD 502",1948,"St Helens SD 502"]
["2144-St Paul SD 45",2144,"St Paul SD 45"]
["2209-Stanfield SD 61",2209,"Stanfield SD 61"]
["4823-Sunny Wolf Charter School",4823,"Sunny Wolf Charter School"]
["2003-Sutherlin SD 130",2003,"Sutherlin SD 130"]
["4484-Sweet Home Charter School",4484,"Sweet Home Charter School"]
[{"$f":"CONCATENATE(B232,\"-\",C232)","v":"2102-Sweet Home SD 55"},2102,"Sweet Home SD 55"]
["5385-The Cannon Beach Academy",5385,"The Cannon Beach Academy"]
["4746-The Community Roots School",4746,"The Community Roots School"]
["4604-The Cottonwood School of Civics and Science",4604,"The Cottonwood School of Civics and Science"]
["4720-The Ivy School",4720,"The Ivy School"]
["3452-Three Rivers Charter School",3452,"Three Rivers Charter School"]
["2055-Three Rivers/Josephine County SD",2055,"Three Rivers/Josephine County SD"]
["2242-Tigard-Tualatin SD 23J",2242,"Tigard-Tualatin SD 23J"]
["2197-Tillamook SD 9",2197,"Tillamook SD 9"]
["2222-Troy SD 54",2222,"Troy SD 54"]
["3432-Ukiah Charter School",3432,"Ukiah Charter School"]
["2210-Ukiah SD 80R",2210,"Ukiah SD 80R"]
["2204-Umatilla SD 6R",2204,"Umatilla SD 6R"]
["2213-Union SD 5",2213,"Union SD 5"]
["2116-Vale SD 84",2116,"Vale SD 84"]
["4390-Valley Inquiry Charter School",4390,"Valley Inquiry Charter School"]
["1947-Vernonia SD 47J",1947,"Vernonia SD 47J"]
["3229-Village School",3229,"Village School"]
["2220-Wallowa SD 12",2220,"Wallowa SD 12"]
["1936-Warrenton-Hammond SD 30",1936,"Warrenton-Hammond SD 30"]
["1922-West Linn-Wilsonville SD 3J",1922,"West Linn-Wilsonville SD 3J"]
["2255-Willamina SD 30J",2255,"Willamina SD 30J"]
["2002-Winston-Dillard SD 116",2002,"Winston-Dillard SD 116"]
["4230-Woodburn Arthur Academy",4230,"Woodburn Arthur Academy"]
["2146-Woodburn SD 103",2146,"Woodburn SD 103"]
["5063-Woodland Charter School",5063,"Woodland Charter School"]
["2251-Yamhill Carlton SD 1",2251,"Yamhill Carlton SD 1"]
["1997-Yoncalla SD 32",1997,"Yoncalla SD 32"]

{"sheet":"23-24 Allocations","index":6,"n_rows":259,"n_cols":4,"rows_kept":259,"cut":false,"hidden":true,"merged":[]}
[null,"Inst ID","District","Allocation"]
[{"$f":"CONCATENATE(B2,\"-\",C2)","v":"4555-Academy for Character Education"},4555,"Academy for Character Education",41690.328470162734]
[{"$f":"CONCATENATE(B3,\"-\",C3)","v":"2063-Adel SD 21"},2063,"Adel SD 21",41690.328470162734]
["2113-Adrian SD 61",2113,"Adrian SD 61",41690.328470162734]
["4585-Alliance Charter Academy",4585,"Alliance Charter Academy",41690.328470162734]
["1899-Alsea SD 7J",1899,"Alsea SD 7J",91682.006849709083]
["2252-Amity SD 4J",2252,"Amity SD 4J",58698.406030313941]
["705-Annex Charter School",705,"Annex Charter School",41690.328470162734]
["4805-Arco Iris Spanish Immersion School",4805,"Arco Iris Spanish Immersion School",61718.00931401972]
["2005-Arlington SD 3",2005,"Arlington SD 3",41690.328470162734]
["3580-Arthur Academy",3580,"Arthur Academy",41690.328470162734]
["2041-Ashland SD 5",2041,"Ashland SD 5",166321.85833319405]
["2051-Ashwood SD 8",2051,"Ashwood SD 8",41690.328470162734]
["1933-Astoria SD 1",1933,"Astoria SD 1",128635.33090043232]
["2208-Athena-Weston SD 29RJ",2208,"Athena-Weston SD 29RJ",42351.933109004531]
["1894-Baker SD 5J",1894,"Baker SD 5J",118430.93833411361]
["1969-Bandon SD 54",1969,"Bandon SD 54",56763.178987626336]
["2240-Banks SD 13",2240,"Banks SD 13",74942.962592870826]
["2243-Beaverton SD 48J",2243,"Beaverton SD 48J",2842916.6474344423]
["5309-Bend International School",5309,"Bend International School",41690.328470162734]
["1976-Bend-LaPine Administrative SD 1",1976,"Bend-LaPine Administrative SD 1",1167912.4432685282]
["784-Bethany Charter School",784,"Bethany Charter School",41690.328470162734]
["2088-Bethel SD 52",2088,"Bethel SD 52",412022.21029482986]
["2095-Blachly SD 90",2095,"Blachly SD 90",41690.328470162734]
["2052-Black Butte SD 41",2052,"Black Butte SD 41",41690.328470162734]
["5349-Bridge Charter Academy",5349,"Bridge Charter Academy",56386.585402542216]
["1974-Brookings-Harbor SD 17C",1974,"Brookings-Harbor SD 17C",103068.57261287025]
["1896-Burnt River SD 30J",1896,"Burnt River SD 30J",41690.328470162734]
["2046-Butte Falls SD 91",2046,"Butte Falls SD 91",41690.328470162734]
["1995-Camas Valley SD 21J",1995,"Camas Valley SD 21J",41690.328470162734]
["1929-Canby SD 86",1929,"Canby SD 86",319786.2693927451]
["4475-Cascade Heights Public Charter School",4475,"Cascade Heights Public Charter School",41690.328470162734]
["2139-Cascade SD 5",2139,"Cascade SD 5",203058.83457426916]
["2185-Centennial SD 28J",2185,"Centennial SD 28J",420926.34481946431]
["1972-Central Curry SD 1",1972,"Central Curry SD 1",41690.328470162734]
["2105-Central Linn SD 552",2105,"Central Linn SD 552",41978.401250187577]
["2042-Central Point SD 6",2042,"Central Point SD 6",364747.73207716853]
["2191-Central SD 13J",2191,"Central SD 13J",237474.37027399006]
["4395-Childs Way Charter School",4395,"Childs Way Charter School",41690.328470162734]
["4206-City View Charter School",4206,"City View Charter School",44811.184407079527]
["1945-Clatskanie SD 6J",1945,"Clatskanie SD 6J",66921.888432450563]
["507-Coburg Community Charter School",507,"Coburg Community Charter School",41690.328470162734]
["1927-Colton SD 53",1927,"Colton SD 53",41690.328470162734]
["2006-Condon SD 25J",2006,"Condon SD 25J",41690.328470162734]
["1965-Coos Bay SD 9",1965,"Coos Bay SD 9",215338.6276133834]
["1964-Coquille SD 8",1964,"Coquille SD 8",83650.957058067012]
["4592-Corbett School",4592,"Corbett School",78521.230270948348]
["2186-Corbett SD 39",2186,"Corbett SD 39",41690.328470162734]
["1901-Corvallis SD 509J",1901,"Corvallis SD 509J",425400.6617553815]
["2216-Cove SD 15",2216,"Cove SD 15",41690.328470162734]
["5251-Crater Lake Academy",5251,"Crater Lake Academy",41690.328470162734]
["2023-Crane Consortium",2023,"Crane Consortium",41690.33]
["2086-Creswell SD 40",2086,"Creswell SD 40",86763.852746420773]
["1970-Crook County SD",1970,"Crook County SD",237537.90313310153]
["2089-Crow-Applegate-Lorane SD 66",2089,"Crow-Applegate-Lorane SD 66",41690.328470162734]
["2050-Culver SD 4",2050,"Culver SD 4",55780.796144653505]
["5298-Dallas Community Charter",5298,"Dallas Community Charter",41690.328470162734]
["2190-Dallas SD 2",2190,"Dallas SD 2",183397.97871812369]
["2187-David Douglas SD 40",2187,"David Douglas SD 40",692889.35860001284]
["2253-Dayton SD 8",2253,"Dayton SD 8",59681.188435820841]
["2011-Dayville SD 16J",2011,"Dayville SD 16J",41690.328470162734]
["5384-Desert Sky Montessori",5384,"Desert Sky Montessori",41690.328470162734]
["1993-Douglas County SD 15",1993,"Douglas County SD 15",41690.328470162734]
["1991-Douglas County SD 4",1991,"Douglas County SD 4",439249.96453229891]
[{"$f":"CONCATENATE(B65,\"-\",C65)","v":"2229-Dufur SD 29"},2229,"Dufur SD 29",41690.328470162734]
["4850-Eagle Charter School",4850,"Eagle Charter School",41690.328470162734]
["2043-Eagle Point SD 9",2043,"Eagle Point SD 9",293895.48401874222]
["2203-Echo SD 5",2203,"Echo SD 5",41690.328470162734]
["3361-Eddyville Charter School",3361,"Eddyville Charter School",41690.328470162734]
["2217-Elgin SD 23",2217,"Elgin SD 23",41690.328470162734]
["1998-Elkton SD 34",1998,"Elkton SD 34",41690.328470162734]
["3991-Emerson School",3991,"Emerson School",41690.328470162734]
["2221-Enterprise SD 21",2221,"Enterprise SD 21",41690.328470162734]
["1930-Estacada SD 108",1930,"Estacada SD 108",154744.15626027464]
["2082-Eugene SD 4J",2082,"Eugene SD 4J",1127886.513666587]
["2193-Falls City SD 57",2193,"Falls City SD 57",41690.328470162734]
["2084-Fern Ridge SD 28J",2084,"Fern Ridge SD 28J",109472.94010409361]
["4595-Forest Grove Community School",4595,"Forest Grove Community School",41690.328470162734]
["2241-Forest Grove SD 15",2241,"Forest Grove SD 15",419415.4344552799]
["4040-Four Rivers Community School",4040,"Four Rivers Community School",41690.328470162734]
["2245-Gaston SD 511J",2245,"Gaston SD 511J",41690.328470162734]
["2137-Gervais SD 1",2137,"Gervais SD 1",70284.645273162692]
["1931-Gladstone SD 115",1931,"Gladstone SD 115",122179.33088994949]
["307-Glendale Community Charter School Pre-K-12",307,"Glendale Community Charter School Pre-K-12",41690.328470162734]
["2000-Glendale SD 77",2000,"Glendale SD 77",41690.328470162734]
["1992-Glide SD 12",1992,"Glide SD 12",60346.744900908358]
["2054-Grants Pass SD 7",2054,"Grants Pass SD 7",402258.59218748403]
["2100-Greater Albany Public SD 8J",2100,"Greater Albany Public SD 8J",685304.11880690209]
["4601-Gresham Arthur Academy",4601,"Gresham Arthur Academy",41690.328470162734]
["2183-Gresham-Barlow SD 10J",2183,"Gresham-Barlow SD 10J",734966.78250304761]
["2014-Harney 3 Monroe Consortium",2014,"Harney 3 Monroe Consortium",66353.183324766011]
["2013-Harney Region Consortium",2013,"Harney Region Consortium",291832.29929113912]
["2114-Harper SD 66",2114,"Harper SD 66",41690.328470162734]
["2099-Harrisburg SD 7J",2099,"Harrisburg SD 7J",62684.47753119289]
["2201-Helix SD 1",2201,"Helix SD 1",41690.328470162734]
["2206-Hermiston SD 8",2206,"Hermiston SD 8",432842.21363931586]
["2239-Hillsboro SD 1J",2239,"Hillsboro SD 1J",1433486.9249662326]
["5732-HOLLA School",5732,"HOLLA School",41690.328470162734]
["2024-Hood River County SD",2024,"Hood River County SD",298207.17367501534]
["4867-Hope Chinese Charter School",4867,"Hope Chinese Charter School",54230.206764376067]
["1895-Huntington SD 16J",1895,"Huntington SD 16J",41690.328470162734]
["2215-Imbler SD 11",2215,"Imbler SD 11",41690.328470162734]
["4637-Inavale Community Partners dba Muddy Creek Charter School ",4637,"Inavale Community Partners dba Muddy Creek Charter School ",41690.328470162734]
["3997-Ione SD R2",3997,"Ione SD R2",41690.328470162734]
["2053-Jefferson County SD 509J",2053,"Jefferson County SD 509J",232734.37991192017]
["2140-Jefferson SD 14J",2140,"Jefferson SD 14J",62407.935171990837]
["1934-Jewell SD 8",1934,"Jewell SD 8",41690.328470162734]
["2008-John Day SD 3",2008,"John Day SD 3",48201.491255790024]
["2107-Jordan Valley SD 3",2107,"Jordan Valley SD 3",41690.328470162734]
["1087-Joseph Charter School",1087,"Joseph Charter School",41690.328470162734]
["2219-Joseph SD 6",2219,"Joseph SD 6",41690.328470162734]
["2091-Junction City SD 69",2091,"Junction City SD 69",121018.9187795489]
["5218-Kairos PDX",5218,"Kairos PDX",42997.070888471404]
["5205-Kids Unlimited Academy",5205,"Kids Unlimited Academy",62451.699812805782]
["5572-Kids Unlimited Academy White City",5572,"Kids Unlimited Academy White City",41690.328470162734]
["3440-Kings Valley Charter School",3440,"Kings Valley Charter School",41690.328470162734]
["2057-Klamath County SD",2057,"Klamath County SD",579824.99313201394]
["2056-Klamath Falls City Schools",2056,"Klamath Falls City Schools",209154.14406909799]
["2262-Knappa SD 4",2262,"Knappa SD 4",42163.070022291045]
["2212-La Grande SD 1",2212,"La Grande SD 1",167892.09205472216]
["2059-Lake County SD 7",2059,"Lake County SD 7",60374.100655441354]
["1923-Lake Oswego SD 7J",1923,"Lake Oswego SD 7J",429887.50689927553]
["5060-Le Monde French Immersion Public Charter School",5060,"Le Monde French Immersion Public Charter School",46610.148255266009]
["2101-Lebanon Community SD 9",2101,"Lebanon Community SD 9",272011.82053060533]
["4667-Lewis and Clark Montessori Charter School",4667,"Lewis and Clark Montessori Charter School",41690.328470162734]
[{"$f":"CONCATENATE(B126,\"-\",C126)","v":"3615-Lighthouse Charter School"},3615,"Lighthouse Charter School",41690.328470162734]
["2097-Lincoln County SD",2097,"Lincoln County SD",359490.16993828164]
["4821-Logos Charter School",4821,"Logos Charter School",96231.198974484563]
["2012-Long Creek SD 17",2012,"Long Creek SD 17",41690.328470162734]
["2994-Lourdes School",2994,"Lourdes School",41690.328470162734]
["2092-Lowell SD 71",2092,"Lowell SD 71",41690.328470162734]
["3461-Luckiamute Valley Charter School",3461,"Luckiamute Valley Charter School",41690.328470162734]
["4593-Madrone Trail Public Charter School",4593,"Madrone Trail Public Charter School",41690.328470162734]
["2106-Malheur Region Consortium",2106,"Malheur Region Consortium",125070.98541048821]
["2085-Mapleton SD 32",2085,"Mapleton SD 32",41690.328470162734]
["2094-Marcola SD 79J",2094,"Marcola SD 79J",41690.328470162734]
["2090-McKenzie SD 68",2090,"McKenzie SD 68",41690.328470162734]
["2256-McMinnville SD 40",2256,"McMinnville SD 40",464238.80048688134]
["2048-Medford SD 549C",2048,"Medford SD 549C",903992.85076829838]
["2205-Milton-Freewater Unified SD 7",2205,"Milton-Freewater Unified SD 7",132144.71379243809]
["2249-Mitchell SD 55",2249,"Mitchell SD 55",41690.328470162734]
["4745-Molalla River Academy",4745,"Molalla River Academy",41690.328470162734]
["1925-Molalla River SD 35",1925,"Molalla River SD 35",182446.13036318435]
["1898-Monroe SD 1J",1898,"Monroe SD 1J",41690.328470162734]
["2010-Monument SD 8",2010,"Monument SD 8",41690.328470162734]
["2147-Morrow SD 1",2147,"Morrow SD 1",203599.42681581341]
["1095-Mosier Community School",1095,"Mosier Community School",41690.328470162734]
["5252-Mountain View Academy",5252,"Mountain View Academy",41690.328470162734]
["2145-Mt Angel SD 91",2145,"Mt Angel SD 91",57154.115480099274]
["3579-Multi-sensory Instruction Teaching Children Hands-On (MITCH)",3579,"Multi-sensory Instruction Teaching Children Hands-On (MITCH)",42081.707300065005]
["3490-Multnomah Learning Academy",3490,"Multnomah Learning Academy",54649.947319347346]
["1968-Myrtle Point SD 41",1968,"Myrtle Point SD 41",48986.571964574039]
["2198-Neah-Kah-Nie SD 56",2198,"Neah-Kah-Nie SD 56",53242.595229816689]
["2199-Nestucca Valley SD 101J",2199,"Nestucca Valley SD 101J",46523.539771291908]
["2254-Newberg SD 29J",2254,"Newberg SD 29J",315744.14882669289]
["1966-North Bend SD 13",1966,"North Bend SD 13",162600.97928968479]
["1924-North Clackamas SD 12",1924,"North Clackamas SD 12",1212860.6079300616]
["1996-North Douglas SD 22",1996,"North Douglas SD 22",41690.328470162734]
["2061-North Lake SD 14",2061,"North Lake SD 14",41690.328470162734]
["2141-North Marion SD 15",2141,"North Marion SD 15",126642.30365009293]
["2214-North Powder SD 8J",2214,"North Powder SD 8J",41690.328470162734]
["2143-North Santiam SD 29J",2143,"North Santiam SD 29J",147501.28544546801]
["4131-North Wasco County Consortium",4131,"North Wasco County Consortium",200225.98862666881]
["2110-Nyssa SD 26",2110,"Nyssa SD 26",113826.6956996487]
["1990-Oakland SD 1",1990,"Oakland SD 1",48972.483951776594]
["2093-Oakridge SD 76",2093,"Oakridge SD 76",46449.567127405884]
["2108-Ontario SD 8C",2108,"Ontario SD 8C",184241.37267871361]
["3528-Optimum Learning Environment Charter School",3528,"Optimum Learning Environment Charter School",41690.328470162734]
["1928-Oregon City SD 62",1928,"Oregon City SD 62",496925.60253093578]
["4820-Oregon Trail  Academy",4820,"Oregon Trail  Academy",41690.328470162734]
["1926-Oregon Trail SD 46",1926,"Oregon Trail SD 46",287788.43286803045]
["2060-Paisley SD 11",2060,"Paisley SD 11",41690.328470162734]
["2181-Parkrose SD 3",2181,"Parkrose SD 3",202260.03554758686]
["2207-Pendleton SD 16",2207,"Pendleton SD 16",237072.73929898199]
["2192-Perrydale SD 21",2192,"Perrydale SD 21",41690.328470162734]
["1900-Philomath SD 17J",1900,"Philomath SD 17J",93998.733806899007]
["2039-Phoenix-Talent SD 4",2039,"Phoenix-Talent SD 4",177729.77084601086]
["2202-Pilot Rock SD 2",2202,"Pilot Rock SD 2",41690.328470162734]
["1897-Pine Eagle SD 61",1897,"Pine Eagle SD 61",41690.328470162734]
["2047-Pinehurst SD 94",2047,"Pinehurst SD 94",41690.328470162734]
["2081-Pleasant Hill SD 1",2081,"Pleasant Hill SD 1",78139.716387420107]
["2062-Plush SD 18",2062,"Plush SD 18",41690.328470162734]
["1973-Port Orford-Langlois SD 2CJ",1973,"Port Orford-Langlois SD 2CJ",41690.328470162734]
["4400-Portland Arthur Academy Charter School",4400,"Portland Arthur Academy Charter School",41690.328470162734]
["2180-Portland SD 1J",2180,"Portland SD 1J",3281865.686583214]
["4534-Portland Village School",4534,"Portland Village School",49027.249674353247]
["223-Powell Butte Community Charter School",223,"Powell Butte Community Charter School",41690.328470162734]
["1967-Powers SD 31",1967,"Powers SD 31",41690.328470162734]
[{"$f":"CONCATENATE(B189,\"-\",C189)","v":"2009-Prairie City SD 4"},2009,"Prairie City SD 4",41690.328470162734]
["2045-Prospect SD 59",2045,"Prospect SD 59",41690.328470162734]
["1946-Rainier SD 13",1946,"Rainier SD 13",63479.197785396806]
["1977-Redmond SD 2J",1977,"Redmond SD 2J",496672.3449329671]
["2001-Reedsport SD 105",2001,"Reedsport SD 105",51530.877964730164]
["4079-Resource Link Charter School",4079,"Resource Link Charter School",41690.328470162734]
["4216-Reynolds Arthur Academy",4216,"Reynolds Arthur Academy",41690.328470162734]
["2182-Reynolds SD 7",2182,"Reynolds SD 7",746348.80671176221]
["1999-Riddle SD 70",1999,"Riddle SD 70",41690.328470162734]
["3233-Ridgeline Montessori",3233,"Ridgeline Montessori",41690.328470162734]
["2188-Riverdale SD 51J",2188,"Riverdale SD 51J",43899.758985696026]
["4856-Rivers Edge Academy Charter School",4856,"Rivers Edge Academy Charter School",41690.328470162734]
["4822-Rockwood Preparatory Academy",4822,"Rockwood Preparatory Academy",66877.758693725322]
["2044-Rogue River SD 35",2044,"Rogue River SD 35",65427.826723416372]
["2142-Salem-Keizer SD 24J",2142,"Salem-Keizer SD 24J",3068861.1033735052]
["3505-Sand Ridge Charter School",3505,"Sand Ridge Charter School",41690.328470162734]
["2104-Santiam Canyon SD 129J",2104,"Santiam Canyon SD 129J",44870.524264624873]
["958-Sauvie Island School",958,"Sauvie Island School",42829.016301083582]
["1944-Scappoose SD 1J",1944,"Scappoose SD 1J",127471.94502148218]
["2103-Scio SD 95",2103,"Scio SD 95",48719.44295043232]
["1935-Seaside SD 10",1935,"Seaside SD 10",106191.17021474546]
["2257-Sheridan SD 48J",2257,"Sheridan SD 48J",59925.70925056086]
["2195-Sherman County SD",2195,"Sherman County SD",41690.328470162734]
["4220-Sherwood Charter School",4220,"Sherwood Charter School",41690.328470162734]
["2244-Sherwood SD 88J",2244,"Sherwood SD 88J",302231.20888363733]
["4038-Siletz Valley Schools",4038,"Siletz Valley Schools",41690.328470162734]
["2138-Silver Falls SD 4J",2138,"Silver Falls SD 4J",238783.76144347485]
["1978-Sisters SD 6",1978,"Sisters SD 6",79354.797858301885]
["2096-Siuslaw SD 97J",2096,"Siuslaw SD 97J",88151.414342498494]
["4221-South Columbia Family School",4221,"South Columbia Family School",41690.328470162734]
["2087-South Lane SD 45J3",2087,"South Lane SD 45J3",194170.64211341937]
["1994-South Umpqua SD 19",1994,"South Umpqua SD 19",116876.15742161497]
["2225-South Wasco County SD 1",2225,"South Wasco County SD 1",41690.328470162734]
["2247-Spray SD 1",2247,"Spray SD 1",41690.328470162734]
["2083-Springfield SD 19",2083,"Springfield SD 19",735646.60211399745]
["4480-Springwater Environmental Sciences School",4480,"Springwater Environmental Sciences School",41690.328470162734]
["4602-St Helens Arthur Academy",4602,"St Helens Arthur Academy",41690.328470162734]
["1948-St Helens SD 502",1948,"St Helens SD 502",177372.89186222068]
["2144-St Paul SD 45",2144,"St Paul SD 45",41690.328470162734]
["2209-Stanfield SD 61",2209,"Stanfield SD 61",46232.983428502303]
["4823-Sunny Wolf Charter School",4823,"Sunny Wolf Charter School",41690.328470162734]
["2003-Sutherlin SD 130",2003,"Sutherlin SD 130",104347.63966317302]
["4484-Sweet Home Charter School",4484,"Sweet Home Charter School",41690.328470162734]
["2102-Sweet Home SD 55",2102,"Sweet Home SD 55",163459.31047205685]
["5385-The Cannon Beach Academy",5385,"The Cannon Beach Academy",41690.328470162734]
["4746-The Community Roots School",4746,"The Community Roots School",41690.328470162734]
["4604-The Cottonwood School of Civics and Science",4604,"The Cottonwood School of Civics and Science",41690.328470162734]
["4720-The Ivy School",4720,"The Ivy School",41690.328470162734]
["3452-Three Rivers Charter School",3452,"Three Rivers Charter School",41690.328470162734]
["2055-Three Rivers/Josephine County SD",2055,"Three Rivers/Josephine County SD",311835.50547056121]
["2242-Tigard-Tualatin SD 23J",2242,"Tigard-Tualatin SD 23J",845344.05678345833]
["2197-Tillamook SD 9",2197,"Tillamook SD 9",149599.44803339304]
["2222-Troy SD 54",2222,"Troy SD 54",41690.328470162734]
["3432-Ukiah Charter School",3432,"Ukiah Charter School",41690.328470162734]
["2210-Ukiah SD 80R",2210,"Ukiah SD 80R",41690.328470162734]
["2204-Umatilla SD 6R",2204,"Umatilla SD 6R",122302.71769266359]
["2213-Union SD 5",2213,"Union SD 5",41690.328470162734]
["2116-Vale SD 84",2116,"Vale SD 84",78412.011295034696]
["4390-Valley Inquiry Charter School",4390,"Valley Inquiry Charter School",41690.328470162734]
["1947-Vernonia SD 47J",1947,"Vernonia SD 47J",51513.219607565225]
["3229-Village School",3229,"Village School",41690.328470162734]
["2220-Wallowa SD 12",2220,"Wallowa SD 12",41690.328470162734]
[{"$f":"CONCATENATE(B251,\"-\",C251)","v":"1936-Warrenton-Hammond SD 30"},1936,"Warrenton-Hammond SD 30",79074.393023540862]
["1922-West Linn-Wilsonville SD 3J",1922,"West Linn-Wilsonville SD 3J",596262.45454215817]
["2255-Willamina SD 30J",2255,"Willamina SD 30J",66088.284381063393]
["2002-Winston-Dillard SD 116",2002,"Winston-Dillard SD 116",103600.27937704929]
["4230-Woodburn Arthur Academy",4230,"Woodburn Arthur Academy",41690.328470162734]
["2146-Woodburn SD 103",2146,"Woodburn SD 103",403969.5740068978]
["5063-Woodland Charter School",5063,"Woodland Charter School",41690.328470162734]
["2251-Yamhill Carlton SD 1",2251,"Yamhill Carlton SD 1",90860.445397073767]
["1997-Yoncalla SD 32",1997,"Yoncalla SD 32",41690.328470162734]

{"sheet":"24-25 Allocations","index":7,"n_rows":261,"n_cols":4,"rows_kept":261,"cut":false,"hidden":true,"merged":[]}
[null,"Inst ID","District","District Allocation w/ Min. Grant"]
[{"$f":"CONCATENATE(B2,\"-\",C2)","v":"4555-Academy for Character Education"},4555,"Academy for Character Education",43391.974530169369]
[{"$f":"CONCATENATE(B3,\"-\",C3)","v":"2063-Adel SD 21"},2063,"Adel SD 21",43391.974530169369]
["2113-Adrian SD 61",2113,"Adrian SD 61",43391.974530169369]
["4585-Alliance Charter Academy",4585,"Alliance Charter Academy",43391.974530169369]
["1899-Alsea SD 7J",1899,"Alsea SD 7J",95424.129578268636]
["2252-Amity SD 4J",2252,"Amity SD 4J",61094.259337673691]
["2111-Annex SD 29",2111,"Annex SD 29",43391.974530169369]
["4805-Arco Iris Spanish Immersion School",4805,"Arco Iris Spanish Immersion School",64237.111735000115]
["2005-Arlington SD 3",2005,"Arlington SD 3",43391.974530169369]
["3580-Arthur Academy",3580,"Arthur Academy",43391.974530169369]
["2041-Ashland SD 5",2041,"Ashland SD 5",173110.50561209989]
["2051-Ashwood SD 8",2051,"Ashwood SD 8",43391.974530169369]
["1933-Astoria SD 1",1933,"Astoria SD 1",133885.75256983773]
["2208-Athena-Weston SD 29RJ",2208,"Athena-Weston SD 29RJ",44080.583439984308]
["1894-Baker SD 5J",1894,"Baker SD 5J",123264.85418448558]
["1969-Bandon SD 54",1969,"Bandon SD 54",59080.043436100867]
["2240-Banks SD 13",2240,"Banks SD 13",78001.859025232901]
["2243-Beaverton SD 48J",2243,"Beaverton SD 48J",2958954.0616154396]
["5309-Bend International School",5309,"Bend International School",43391.974530169369]
["1976-Bend-LaPine Administrative SD 1",1976,"Bend-LaPine Administrative SD 1",1215582.3389121415]
["784-Bethany Charter School",784,"Bethany Charter School",43391.974530169369]
["2088-Bethel SD 52",2088,"Bethel SD 52",428839.44336808816]
["2095-Blachly SD 90",2095,"Blachly SD 90",43391.974530169369]
["2052-Black Butte SD 41",2052,"Black Butte SD 41",43391.974530169369]
["5349-Bridge Charter Academy",5349,"Bridge Charter Academy",58688.078684278626]
["1974-Brookings-Harbor SD 17C",1974,"Brookings-Harbor SD 17C",107275.45312768126]
["1896-Burnt River SD 30J",1896,"Burnt River SD 30J",43391.974530169369]
["2046-Butte Falls SD 91",2046,"Butte Falls SD 91",43391.974530169369]
["1995-Camas Valley SD 21J",1995,"Camas Valley SD 21J",43391.974530169369]
["1929-Canby SD 86",1929,"Canby SD 86",332838.77018428571]
["4475-Cascade Heights Public Charter School",4475,"Cascade Heights Public Charter School",43391.974530169369]
["2139-Cascade SD 5",2139,"Cascade SD 5",211346.95027117807]
["2185-Centennial SD 28J",2185,"Centennial SD 28J",438107.01195495261]
["1972-Central Curry SD 1",1972,"Central Curry SD 1",43391.974530169369]
["2105-Central Linn SD 552",2105,"Central Linn SD 552",43691.805382848288]
["2042-Central Point SD 6",2042,"Central Point SD 6",379635.39461093047]
["2191-Central SD 13J",2191,"Central SD 13J",247167.20171374473]
["4395-Childs Way Charter School",4395,"Childs Way Charter School",43391.974530169369]
["4206-City View Charter School",4206,"City View Charter School",46640.212342062354]
["1945-Clatskanie SD 6J",1945,"Clatskanie SD 6J",69653.394082754661]
["507-Coburg Community Charter School",507,"Coburg Community Charter School",43391.974530169369]
["1927-Colton SD 53",1927,"Colton SD 53",43391.974530169369]
["2006-Condon SD 25J",2006,"Condon SD 25J",43391.974530169369]
["1965-Coos Bay SD 9",1965,"Coos Bay SD 9",224127.95935270516]
["1964-Coquille SD 8",1964,"Coquille SD 8",87065.281835947288]
["4592-Corbett School",4592,"Corbett School",81726.178445272759]
["2186-Corbett SD 39",2186,"Corbett SD 39",43391.974530169369]
["1901-Corvallis SD 509J",1901,"Corvallis SD 509J",442763.95407192764]
["2216-Cove SD 15",2216,"Cove SD 15",43391.974530169369]
["5251-Crater Lake Academy",5251,"Crater Lake Academy",43391.974530169369]
["2023-Crane Consortium",2023,"Crane Consortium",43391.97]
["2086-Creswell SD 40",2086,"Creswell SD 40",90305.23449117264]
["1970-Crook County SD",1970,"Crook County SD",247233.32775077911]
["2089-Crow-Applegate-Lorane SD 66",2089,"Crow-Applegate-Lorane SD 66",43391.974530169369]
["2050-Culver SD 4",2050,"Culver SD 4",58057.563334231192]
["5298-Dallas Community Charter",5298,"Dallas Community Charter",43391.974530169369]
["2190-Dallas SD 2",2190,"Dallas SD 2",190883.61050253687]
["2187-David Douglas SD 40",2187,"David Douglas SD 40",721170.55691021739]
["2253-Dayton SD 8",2253,"Dayton SD 8",62117.1553107523]
["2011-Dayville SD 16J",2011,"Dayville SD 16J",43391.974530169369]
["5384-Desert Sky Montessori",5384,"Desert Sky Montessori",43391.974530169369]
["1993-Douglas County SD 15",1993,"Douglas County SD 15",43391.974530169369]
["1991-Douglas County SD 4",1991,"Douglas County SD 4",457178.53451320902]
[{"$f":"CONCATENATE(B65,\"-\",C65)","v":"2229-Dufur SD 29"},2229,"Dufur SD 29",43391.974530169369]
["4850-Eagle Charter School",4850,"Eagle Charter School",43391.974530169369]
["2043-Eagle Point SD 9",2043,"Eagle Point SD 9",305891.2180603235]
["2203-Echo SD 5",2203,"Echo SD 5",43391.974530169369]
["3361-Eddyville Charter School",3361,"Eddyville Charter School",43391.974530169369]
["2217-Elgin SD 23",2217,"Elgin SD 23",43391.974530169369]
["1998-Elkton SD 34",1998,"Elkton SD 34",43391.974530169369]
["3991-Emerson School",3991,"Emerson School",43391.974530169369]
["2221-Enterprise SD 21",2221,"Enterprise SD 21",43391.974530169369]
["1930-Estacada SD 108",1930,"Estacada SD 108",161060.24427089808]
["2082-Eugene SD 4J",2082,"Eugene SD 4J",1173922.6978978759]
["2193-Falls City SD 57",2193,"Falls City SD 57",43391.974530169369]
["2084-Fern Ridge SD 28J",2084,"Fern Ridge SD 28J",113941.22337364843]
["4595-Forest Grove Community School",4595,"Forest Grove Community School",43391.974530169369]
["2241-Forest Grove SD 15",2241,"Forest Grove SD 15",436534.43177998514]
["4040-Four Rivers Community School",4040,"Four Rivers Community School",43391.974530169369]
["2245-Gaston SD 511J",2245,"Gaston SD 511J",43391.974530169369]
["2137-Gervais SD 1",2137,"Gervais SD 1",73153.406304720353]
["1931-Gladstone SD 115",1931,"Gladstone SD 115",127166.24235484537]
["307-Glendale Community Charter School Pre-K-12",307,"Glendale Community Charter School Pre-K-12",43391.974530169369]
["2000-Glendale SD 77",2000,"Glendale SD 77",43391.974530169369]
["1992-Glide SD 12",1992,"Glide SD 12",62809.877345843386]
["2054-Grants Pass SD 7",2054,"Grants Pass SD 7",418677.31023595273]
["2100-Greater Albany Public SD 8J",2100,"Greater Albany Public SD 8J",713275.71549289802]
["4601-Gresham Arthur Academy",4601,"Gresham Arthur Academy",43391.974530169369]
["2183-Gresham-Barlow SD 10J",2183,"Gresham-Barlow SD 10J",764965.42668684537]
["2014-Harney 3 Monroe Consortium",2014,"Harney 3 Monroe Consortium",69061.476521695236]
["2015-Harney County SD 4",2015,"Harney County SD 4",43391.974530169369]
["2013-Harney Region Consortium",2013,"Harney Region Consortium",303743.82]
["2114-Harper SD 66",2114,"Harper SD 66",43391.974530169369]
["2099-Harrisburg SD 7J",2099,"Harrisburg SD 7J",65243.027634506878]
["2201-Helix SD 1",2201,"Helix SD 1",43391.974530169369]
["2206-Hermiston SD 8",2206,"Hermiston SD 8",450509.24276745116]
["2239-Hillsboro SD 1J",2239,"Hillsboro SD 1J",1491996.5953730175]
["5732-HOLLA School",5732,"HOLLA School",43391.974530169369]
["2024-Hood River County SD",2024,"Hood River County SD",310378.89504950575]
["4867-Hope Chinese Charter School",4867,"Hope Chinese Charter School",56443.684591493453]
["1895-Huntington SD 16J",1895,"Huntington SD 16J",43391.974530169369]
["2215-Imbler SD 11",2215,"Imbler SD 11",43391.974530169369]
["4637-Inavale Community Partners dba Muddy Creek Charter School ",4637,"Inavale Community Partners dba Muddy Creek Charter School ",43391.974530169369]
["3997-Ione SD R2",3997,"Ione SD R2",43391.974530169369]
["2053-Jefferson County SD 509J",2053,"Jefferson County SD 509J",242233.74235730464]
["2140-Jefferson SD 14J",2140,"Jefferson SD 14J",64955.197832072088]
["1934-Jewell SD 8",1934,"Jewell SD 8",43391.974530169369]
["2008-John Day SD 3",2008,"John Day SD 3",50168.89906214879]
["2107-Jordan Valley SD 3",2107,"Jordan Valley SD 3",43391.974530169369]
["1087-Joseph Charter School",1087,"Joseph Charter School",43391.974530169369]
["2219-Joseph SD 6",2219,"Joseph SD 6",43391.974530169369]
["2091-Junction City SD 69",2091,"Junction City SD 69",125958.46648483659]
["5218-Kairos PDX",5218,"Kairos PDX",44752.053373715135]
["5205-Kids Unlimited Academy",5205,"Kids Unlimited Academy",65000.74878475703]
["5572-Kids Unlimited Academy White City",5572,"Kids Unlimited Academy White City",43391.974530169369]
["3440-Kings Valley Charter School",3440,"Kings Valley Charter School",43391.974530169369]
["2057-Klamath County SD",2057,"Klamath County SD",603491.31938230025]
["2056-Klamath Falls City Schools",2056,"Klamath Falls City Schools",217691.04790865298]
["2262-Knappa SD 4",2262,"Knappa SD 4",43884.011655853938]
["2212-La Grande SD 1",2212,"La Grande SD 1",174744.8305059353]
["2059-Lake County SD 7",2059,"Lake County SD 7",62838.349661785891]
["1923-Lake Oswego SD 7J",1923,"Lake Oswego SD 7J",447433.93575230712]
["5060-Le Monde French Immersion Public Charter School",5060,"Le Monde French Immersion Public Charter School",48512.603286093188]
["2101-Lebanon Community SD 9",2101,"Lebanon Community SD 9",283114.34381756879]
["4667-Lewis and Clark Montessori Charter School",4667,"Lewis and Clark Montessori Charter School",43391.974530169369]
[{"$f":"CONCATENATE(B127,\"-\",C127)","v":"3615-Lighthouse Charter School"},3615,"Lighthouse Charter School",43391.974530169369]
["2097-Lincoln County SD",2097,"Lincoln County SD",374163.23809902783]
["4821-Logos Charter School",4821,"Logos Charter School",100159.00301425943]
["2012-Long Creek SD 17",2012,"Long Creek SD 17",43391.974530169369]
["2994-Lourdes School",2994,"Lourdes School",43391.974530169369]
["2092-Lowell SD 71",2092,"Lowell SD 71",43391.974530169369]
["3461-Luckiamute Valley Charter School",3461,"Luckiamute Valley Charter School",43391.974530169369]
["4593-Madrone Trail Public Charter School",4593,"Madrone Trail Public Charter School",43391.974530169369]
["2106-Malheur Region Consortium",2106,"Malheur Region Consortium",130175.92359050812]
["2085-Mapleton SD 32",2085,"Mapleton SD 32",43391.974530169369]
["2094-Marcola SD 79J",2094,"Marcola SD 79J",43391.974530169369]
["2090-McKenzie SD 68",2090,"McKenzie SD 68",43391.974530169369]
["2256-McMinnville SD 40",2256,"McMinnville SD 40",483187.32295573363]
["2048-Medford SD 549C",2048,"Medford SD 549C",940890.51814659627]
["2205-Milton-Freewater Unified SD 7",2205,"Milton-Freewater Unified SD 7",137538.37557988454]
["2249-Mitchell SD 55",2249,"Mitchell SD 55",43391.974530169369]
["4745-Molalla River Academy",4745,"Molalla River Academy",43391.974530169369]
["1925-Molalla River SD 35",1925,"Molalla River SD 35",189892.91119433471]
["1898-Monroe SD 1J",1898,"Monroe SD 1J",43391.974530169369]
["2010-Monument SD 8",2010,"Monument SD 8",43391.974530169369]
["2147-Morrow SD 1",2147,"Morrow SD 1",211909.60750217311]
["1095-Mosier Community School",1095,"Mosier Community School",43391.974530169369]
["5252-Mountain View Academy",5252,"Mountain View Academy",43391.974530169369]
["2145-Mt Angel SD 91",2145,"Mt Angel SD 91",59486.936520103314]
["3579-Multi-sensory Instruction Teaching Children Hands-On (MITCH)",3579,"Multi-sensory Instruction Teaching Children Hands-On (MITCH)",43799.328006190102]
["3490-Multnomah Learning Academy",3490,"Multnomah Learning Academy",56880.557414014576]
["1968-Myrtle Point SD 41",1968,"Myrtle Point SD 41",50986.023881495421]
["2198-Neah-Kah-Nie SD 56",2198,"Neah-Kah-Nie SD 56",55415.762382054098]
["2199-Nestucca Valley SD 101J",2199,"Nestucca Valley SD 101J",48422.459761956881]
["2254-Newberg SD 29J",2254,"Newberg SD 29J",328631.66510533338]
["1966-North Bend SD 13",1966,"North Bend SD 13",169237.75395456987]
["1924-North Clackamas SD 12",1924,"North Clackamas SD 12",1262365.1225394518]
["1996-North Douglas SD 22",1996,"North Douglas SD 22",43391.974530169369]
["2061-North Lake SD 14",2061,"North Lake SD 14",43391.974530169369]
["2141-North Marion SD 15",2141,"North Marion SD 15",131811.37726846404]
["2214-North Powder SD 8J",2214,"North Powder SD 8J",43391.974530169369]
["2143-North Santiam SD 29J",2143,"North Santiam SD 29J",153521.74607589527]
["4131-North Wasco County Consortium",4131,"North Wasco County Consortium",208398.47795836956]
["2110-Nyssa SD 26",2110,"Nyssa SD 26",118472.68327922617]
["1990-Oakland SD 1",1990,"Oakland SD 1",50971.360847767472]
["2093-Oakridge SD 76",2093,"Oakridge SD 76",48345.467826483669]
["2108-Ontario SD 8C",2108,"Ontario SD 8C",191761.42870641619]
["3528-Optimum Learning Environment Charter School",3528,"Optimum Learning Environment Charter School",43391.974530169369]
["1928-Oregon City SD 62",1928,"Oregon City SD 62",517208.28018525965]
["4820-Oregon Trail  Academy",4820,"Oregon Trail  Academy",43391.974530169369]
["1926-Oregon Trail SD 46",1926,"Oregon Trail SD 46",299534.89951570512]
["2060-Paisley SD 11",2060,"Paisley SD 11",43391.974530169369]
["2181-Parkrose SD 3",2181,"Parkrose SD 3",210515.54720259039]
["2207-Pendleton SD 16",2207,"Pendleton SD 16",246749.17763771594]
["2192-Perrydale SD 21",2192,"Perrydale SD 21",43391.974530169369]
["1900-Philomath SD 17J",1900,"Philomath SD 17J",97835.416819425474]
["4391-Phoenix School",4391,"Phoenix School",0]
["2039-Phoenix-Talent SD 4",2039,"Phoenix-Talent SD 4",184984.04720707249]
["2202-Pilot Rock SD 2",2202,"Pilot Rock SD 2",43391.974530169369]
["1897-Pine Eagle SD 61",1897,"Pine Eagle SD 61",43391.974530169369]
["2047-Pinehurst SD 94",2047,"Pinehurst SD 94",43391.974530169369]
["2081-Pleasant Hill SD 1",2081,"Pleasant Hill SD 1",81329.092566498468]
["2062-Plush SD 18",2062,"Plush SD 18",43391.974530169369]
["1973-Port Orford-Langlois SD 2CJ",1973,"Port Orford-Langlois SD 2CJ",43391.974530169369]
["4400-Portland Arthur Academy Charter School",4400,"Portland Arthur Academy Charter School",43391.974530169369]
["2180-Portland SD 1J",2180,"Portland SD 1J",3415819.388076406]
["4534-Portland Village School",4534,"Portland Village School",51028.3619059595]
["223-Powell Butte Community Charter School",223,"Powell Butte Community Charter School",43391.974530169369]
[{"$f":"CONCATENATE(B190,\"-\",C190)","v":"1967-Powers SD 31"},1967,"Powers SD 31",43391.974530169369]
["2009-Prairie City SD 4",2009,"Prairie City SD 4",43391.974530169369]
["2045-Prospect SD 59",2045,"Prospect SD 59",43391.974530169369]
["1946-Rainier SD 13",1946,"Rainier SD 13",66070.185450106874]
["1977-Redmond SD 2J",1977,"Redmond SD 2J",516944.6855424759]
["2001-Reedsport SD 105",2001,"Reedsport SD 105",53634.17910614772]
["4079-Resource Link Charter School",4079,"Resource Link Charter School",43391.974530169369]
["4216-Reynolds Arthur Academy",4216,"Reynolds Arthur Academy",43391.974530169369]
["2182-Reynolds SD 7",2182,"Reynolds SD 7",776812.02331224212]
["1999-Riddle SD 70",1999,"Riddle SD 70",43391.974530169369]
["3233-Ridgeline Montessori",3233,"Ridgeline Montessori",43391.974530169369]
["2188-Riverdale SD 51J",2188,"Riverdale SD 51J",45691.58588307137]
["4856-Rivers Edge Academy Charter School",4856,"Rivers Edge Academy Charter School",43391.974530169369]
["4822-Rockwood Preparatory Academy",4822,"Rockwood Preparatory Academy",69607.463130203905]
["2044-Rogue River SD 35",2044,"Rogue River SD 35",68098.350263147644]
["2142-Salem-Keizer SD 24J",2142,"Salem-Keizer SD 24J",3194120.7402458931]
["3505-Sand Ridge Charter School",3505,"Sand Ridge Charter School",43391.974530169369]
["2104-Santiam Canyon SD 129J",2104,"Santiam Canyon SD 129J",46701.974234609552]
["958-Sauvie Island School",958,"Sauvie Island School",44577.13941541352]
["1944-Scappoose SD 1J",1944,"Scappoose SD 1J",132674.88155297123]
["2103-Scio SD 95",2103,"Scio SD 95",50707.991642286688]
["1935-Seaside SD 10",1935,"Seaside SD 10",110525.50369289832]
["2257-Sheridan SD 48J",2257,"Sheridan SD 48J",62371.656566910271]
["2195-Sherman County SD",2195,"Sherman County SD",43391.974530169369]
["4220-Sherwood Charter School",4220,"Sherwood Charter School",43391.974530169369]
["2244-Sherwood SD 88J",2244,"Sherwood SD 88J",314567.17659317353]
["4038-Siletz Valley Schools",4038,"Siletz Valley Schools",43391.974530169369]
["2138-Silver Falls SD 4J",2138,"Silver Falls SD 4J",248530.0374207595]
["1978-Sisters SD 6",1978,"Sisters SD 6",82593.769199457049]
["2096-Siuslaw SD 97J",2096,"Siuslaw SD 97J",91749.431254437193]
["4221-South Columbia Family School",4221,"South Columbia Family School",43391.974530169369]
["2087-South Lane SD 45J3",2087,"South Lane SD 45J3",202095.9744445793]
["1994-South Umpqua SD 19",1994,"South Umpqua SD 19",121646.61282657883]
["2225-South Wasco County SD 1",2225,"South Wasco County SD 1",43391.974530169369]
["2247-Spray SD 1",2247,"Spray SD 1",43391.974530169369]
["2083-Springfield SD 19",2083,"Springfield SD 19",765672.99403701769]
["4480-Springwater Environmental Sciences School",4480,"Springwater Environmental Sciences School",43391.974530169369]
["4602-St Helens Arthur Academy",4602,"St Helens Arthur Academy",43391.974530169369]
["1948-St Helens SD 502",1948,"St Helens SD 502",184612.60173414805]
["2144-St Paul SD 45",2144,"St Paul SD 45",43391.974530169369]
["2209-Stanfield SD 61",2209,"Stanfield SD 61",48120.043976604436]
["4823-Sunny Wolf Charter School",4823,"Sunny Wolf Charter School",43391.974530169369]
["2003-Sutherlin SD 130",2003,"Sutherlin SD 130",108606.72699636374]
["4484-Sweet Home Charter School",4484,"Sweet Home Charter School",43391.974530169369]
["2102-Sweet Home SD 55",2102,"Sweet Home SD 55",170131.11906275302]
["5385-The Cannon Beach Academy",5385,"The Cannon Beach Academy",43391.974530169369]
["4746-The Community Roots School",4746,"The Community Roots School",43391.974530169369]
["4604-The Cottonwood School of Civics and Science",4604,"The Cottonwood School of Civics and Science",43391.974530169369]
["4720-The Ivy School",4720,"The Ivy School",43391.974530169369]
["3452-Three Rivers Charter School",3452,"Three Rivers Charter School",43391.974530169369]
["2055-Three Rivers/Josephine County SD",2055,"Three Rivers/Josephine County SD",324563.4852856861]
["2242-Tigard-Tualatin SD 23J",2242,"Tigard-Tualatin SD 23J",879847.89583584433]
["2197-Tillamook SD 9",2197,"Tillamook SD 9",155705.54795312337]
["2222-Troy SD 54",2222,"Troy SD 54",43391.974530169369]
["3432-Ukiah Charter School",3432,"Ukiah Charter School",43391.974530169369]
["2210-Ukiah SD 80R",2210,"Ukiah SD 80R",43391.974530169369]
["2204-Umatilla SD 6R",2204,"Umatilla SD 6R",127294.66535358861]
["2213-Union SD 5",2213,"Union SD 5",43391.974530169369]
["2116-Vale SD 84",2116,"Vale SD 84",81612.50155197487]
["4390-Valley Inquiry Charter School",4390,"Valley Inquiry Charter School",43391.974530169369]
["1947-Vernonia SD 47J",1947,"Vernonia SD 47J",53615.79999971074]
["3229-Village School",3229,"Village School",43391.974530169369]
[{"$f":"CONCATENATE(B252,\"-\",C252)","v":"2220-Wallowa SD 12"},2220,"Wallowa SD 12",43391.974530169369]
["1936-Warrenton-Hammond SD 30",1936,"Warrenton-Hammond SD 30",82301.919269399674]
["1922-West Linn-Wilsonville SD 3J",1922,"West Linn-Wilsonville SD 3J",620599.69758469518]
["2255-Willamina SD 30J",2255,"Willamina SD 30J",68785.76537620883]
["2002-Winston-Dillard SD 116",2002,"Winston-Dillard SD 116",107828.86220876557]
["4230-Woodburn Arthur Academy",4230,"Woodburn Arthur Academy",43391.974530169369]
["2146-Woodburn SD 103",2146,"Woodburn SD 103",420458.12804799562]
["5063-Woodland Charter School",5063,"Woodland Charter School",43391.974530169369]
["2251-Yamhill Carlton SD 1",2251,"Yamhill Carlton SD 1",94569.035005117592]
["1997-Yoncalla SD 32",1997,"Yoncalla SD 32",43391.974530169369]